bitfinex-derivatives/quotes_SOLF0:USTF0_20250409
["timestamp","ask_amount","ask_price","bid_price","bid_amount"]
[1744207645566,39.51538625,106.01,105.91,39.51538625]
[1744207645766,39.51538625,105.97,105.9,4.7912]
[1744207645969,9.4472,105.94,105.89,67.32395041]
[1744207646279,39.51538625,105.95,105.89,67.32395041]
[1744207646469,9.4442,105.97,105.93,9.4471]
[1744207646666,0.05956882,105.93,105.91,0.07214666]
[1744207646872,39.51538625,105.97,105.89,67.32395041]
[1744207647265,0.06002664,105.93,105.91,0.06466096]
[1744207647478,4.5824,105.99,105.95,9.445]
[1744207647782,4.6843,106.01,105.93,67.08]
[1744207647983,39.51538625,106.0,105.93,9.4469]
[1744207648286,39.51538625,105.98,105.93,9.4469]
[1744207648471,9.4443,105.97,105.9,9.2012]
[1744207648677,0.06014464,105.97,105.94,0.06320285]
[1744207648973,39.51538625,105.98,105.94,0.06320285]
[1744207649174,39.51538625,105.95,105.94,0.06320285]
[1744207649570,39.51538625,105.95,105.89,0.24395041]
[1744207649771,39.51538625,105.95,105.93,0.068022]
[1744207650283,39.57927883,105.95,105.93,0.068022]
[1744207650474,0.06389258,105.95,105.93,0.068022]
[1744207650673,9.4479,105.93,105.89,0.24395041]
[1744207650983,9.1329,105.96,105.89,0.24395041]
[1744207651182,9.4442,105.97,105.9,67.1]
[1744207651385,39.51538625,105.99,105.9,71.9188]
[1744207651789,39.51538625,105.95,105.89,0.24395041]
[1744207651985,39.51538625,105.95,105.93,0.00074994]
[1744207652284,9.3291,105.94,105.89,0.24395041]
[1744207652479,39.51538625,105.92,105.89,0.24395041]
[1744207652985,79.0307725,105.9,105.87,0.14586738]
[1744207653178,39.51538625,105.88,105.86,0.26227167]
[1744207653486,39.51538625,105.88,105.84,0.25760695]
[1744207653685,39.51538625,105.85,105.84,0.25760695]
[1744207654282,146.1707725,105.85,105.82,0.27092903]
[1744207654586,39.51538625,105.83,105.79,0.15464895]
[1744207654788,39.51538625,105.81,105.79,0.15464895]
[1744207654980,106.65538625,105.81,105.79,0.15464895]
[1744207655376,67.14,105.81,105.8,9.4591]
[1744207655675,106.72169186,105.81,105.79,0.15464895]
[1744207655981,39.51538625,105.79,105.78,0.30119652]
[1744207656176,39.51538625,105.79,105.76,0.28100147]
[1744207656575,48.97578625,105.79,105.76,0.28100147]
[1744207656770,39.51538625,105.79,105.76,0.28100147]
[1744207656973,39.51538625,105.8,105.76,0.28100147]
[1744207657282,39.51538625,105.78,105.76,0.28100147]
[1744207657683,67.18,105.77,105.75,0.18479486]
[1744207657884,39.51538625,105.76,105.74,0.2980153]
[1744207658084,9.4636,105.75,105.74,0.2980153]
[1744207658380,67.18,105.77,105.74,0.2980153]
[1744207658582,39.51538625,105.75,105.74,0.2980153]
[1744207658789,0.0647636,105.76,105.74,0.2980153]
[1744207659178,9.4636,105.75,105.74,0.2980153]
[1744207659785,39.51538625,105.74,105.71,0.29104317]
[1744207659984,39.51538625,105.72,105.67,0.30432194]
[1744207660188,39.51538625,105.7,105.67,0.30432194]
[1744207660392,48.98528625,105.68,105.67,0.30432194]
[1744207660582,48.98528625,105.68,105.66,0.19046488]
[1744207660886,39.51538625,105.68,105.66,0.19046488]
[1744207661487,69.1,105.67,105.62,0.21638954]
[1744207661789,39.51538625,105.66,105.62,0.21638954]
[1744207661990,39.51538625,105.66,105.63,9.80597139]
[1744207662294,39.51538625,105.66,105.63,0.33197139]
[1744207662599,118.15578723,105.67,105.63,0.33197139]
[1744207662778,108.68488723,105.67,105.63,0.33197139]
[1744207662984,69.16950098,105.67,105.63,0.33197139]
[1744207663187,0.06950098,105.67,105.63,0.33197139]
[1744207664292,9.4717,105.66,105.63,0.33197139]
[1744207664489,0.06950098,105.67,105.63,0.33197139]
[1744207664722,0.06950098,105.67,105.64,4.92959449]
[1744207665190,0.06950098,105.67,105.65,9.78681732]
[1744207665396,108.65538625,105.75,105.65,14.30121732]
[1744207665589,39.51538625,105.75,105.66,1.73995089]
[1744207665791,44.16268625,105.77,105.67,69.14]
[1744207665995,44.16268625,105.77,105.68,1.73904544]
[1744207666308,608.09538625,105.79,105.69,1.73904544]
[1744207666595,0.06415948,105.74,105.71,0.06816118]
[1744207667097,0.06415948,105.74,105.71,0.06576864]
[1744207667389,0.06415948,105.74,105.71,1.80481408]
[1744207667594,0.06415948,105.74,105.71,0.06576864]
[1744207668295,0.06415948,105.74,105.72,9.4661]
[1744207668594,0.06415948,105.74,105.71,0.06576864]
[1744207668797,4.6473,105.8,105.75,9.4631]
[1744207668986,39.51538625,105.79,105.72,9.1254]
[1744207669193,39.51538625,105.79,105.73,1.7386589]
[1744207669392,39.51538625,105.8,105.72,9.1254]
[1744207669596,4.7158,105.81,105.72,9.1254]
[1744207669792,39.51538625,105.82,105.73,70.87868264]
[1744207669987,69.14,105.83,105.75,0.06496847]
[1744207670188,0.06080054,105.79,105.75,0.06496847]
[1744207670389,0.06080054,105.79,105.76,9.462]
[1744207670590,0.06080054,105.79,105.76,0.06935268]
[1744207670891,0.06080054,105.79,105.78,9.4609]
[1744207671089,43.95118625,105.86,105.76,0.06935268]
[1744207671396,43.95118625,105.86,105.75,1.73797876]
[1744207671598,108.65538625,105.87,105.77,69.14]
[1744207671795,108.65538625,105.87,105.78,1.73797876]
[1744207671995,69.14,105.87,105.78,1.73797876]
[1744207672213,69.14,105.87,105.79,9.1212]
[1744207672494,0.06117865,105.84,105.81,9.52051336]
[1744207672701,0.06117865,105.84,105.81,0.06281336]
[1744207672891,0.06117865,105.84,105.8,1.73760685]
[1744207673095,0.06117865,105.84,105.83,9.4564]
[1744207673300,0.06117865,105.84,105.81,0.07192698]
[1744207674005,0.06117865,105.84,105.81,69.21192698]
[1744207674304,39.51538625,105.9,105.82,1.73754692]
[1744207675001,39.51538625,105.87,105.79,218.19174883]
[1744207675194,9.4542,105.86,105.82,9.4571]
[1744207675397,9.4542,105.86,105.85,0.06488001]
[1744207675797,39.51538625,105.87,105.8,1.73742919]
[1744207676098,39.51538625,105.85,105.79,9.1212]
[1744207676298,9.4569,105.83,105.79,18.5805]
[1744207676495,39.51538625,105.85,105.76,278.21054883]
[1744207676707,9.4576,105.82,105.77,1.7380754]
[1744207677007,39.51538625,105.83,105.76,278.21054883]
[1744207677191,0.0627703,105.81,105.78,0.06438351]
[1744207677700,0.0627703,105.81,105.78,0.06923535]
[1744207678893,0.0627703,105.81,105.8,9.4591]
[1744207679105,0.0627703,105.81,105.78,0.06923535]
[1744207680390,39.57815655,105.81,105.78,0.06923535]
[1744207680588,9.46,105.79,105.78,0.06923535]
[1744207680804,48.97538625,105.79,105.78,0.06923535]
[1744207681006,39.51538625,105.79,105.72,213.76934883]
[1744207681191,9.4613,105.78,105.75,9.4635]
[1744207681397,39.51538625,105.76,105.72,4.6988]
[1744207681701,39.51538625,105.76,105.7,9.3399]
[1744207681901,69.12,105.78,105.68,4.8795]
[1744207681902,39.51538625,105.74,105.68,4.8795]
[1744207682105,39.51538625,105.76,105.69,1.7392535]
[1744207682301,0.05953445,105.72,105.7,0.06652295]
[1744207682602,0.05953445,105.72,105.71,9.4672]
[1744207683408,3.445e-05,105.72,105.71,9.4672]
[1744207683705,3.445e-05,105.72,105.71,20.6662901]
[1744207683908,3.445e-05,105.72,105.71,89.7862901]
[1744207684407,3.445e-05,105.72,105.71,89.78609447]
[1744207685095,48.92788625,105.84,105.71,837.81202955]
[1744207685399,39.51538625,105.8,105.72,1.73889447]
[1744207685600,44.17228625,105.84,105.74,39.51538625]
[1744207685805,39.51538625,105.84,105.75,10.69619447]
[1744207686007,39.51538625,105.84,105.76,69.14]
[1744207686201,39.51538625,105.85,105.76,69.14]
[1744207686399,0.06484845,105.81,105.79,0.06967814]
[1744207686800,0.06484845,105.81,105.8,9.4591]
[1744207688099,39.51538625,105.87,105.8,69.12]
[1744207688300,39.51538625,105.87,105.8,73.6454]
[1744207688502,39.51538625,105.85,105.8,13.984]
[1744207688701,39.51538625,105.87,105.8,4.5254]
[1744207688906,48.96848625,105.87,105.8,4.5254]
[1744207689108,48.96848625,105.87,105.84,9.4554]
[1744207689309,0.05980661,105.85,105.84,9.4554]
[1744207689498,39.57519286,105.85,105.8,4.5254]
[1744207689707,39.57519286,105.85,105.83,0.06547005]
[1744207690004,39.51538625,105.85,105.77,4.6788]
[1744207690208,39.58782452,105.85,105.83,0.07250133]
[1744207690412,39.51538625,105.85,105.77,4.6788]
[1744207690701,39.58162565,105.85,105.83,0.07253581]
[1744207690902,39.51538625,105.85,105.77,4.6788]
[1744207691109,48.97088625,105.85,105.83,0.0719818]
[1744207691311,0.06492724,105.82,105.81,9.4577]
[1744207691502,39.51538625,105.85,105.81,9.4577]
[1744207691814,0.06559985,105.83,105.82,9.4573]
[1744207692112,0.06559985,105.83,105.77,4.6788]
[1744207692413,0.06559985,105.83,105.81,0.07113292]
[1744207692607,9.4573,105.82,105.81,0.07113292]
[1744207692801,79.0307725,105.82,105.74,9.464]
[1744207692998,39.51538625,105.8,105.73,4.6261]
[1744207693304,39.51538625,105.8,105.73,9.4646]
[1744207693305,39.51538625,105.76,105.73,9.4646]
[1744207693504,39.51538625,105.8,105.7,9.4497]
[1744207693710,39.51538625,105.8,105.7,218.52024883]
[1744207693912,0.06334202,105.76,105.74,0.06086732]
[1744207694300,39.51538625,105.82,105.79,9.4595]
[1744207694505,39.51538625,105.82,105.72,248.58593508]
[1744207694803,39.51538625,105.82,105.79,0.06057511]
[1744207695000,53.78188625,105.84,105.75,68.78]
[1744207695203,0.06576999,105.82,105.79,0.07196151]
[1744207696111,39.51538625,105.91,105.81,39.51538625]
[1744207696311,43.97098625,105.91,105.82,4.8639]
[1744207696517,39.51538625,105.89,105.82,4.8639]
[1744207696701,48.96698625,105.89,105.82,4.8639]
[1744207696905,43.97098625,105.91,105.82,4.8639]
[1744207697104,39.51538625,105.89,105.82,4.8639]
[1744207697302,0.06571154,105.88,105.85,0.06069434]
[1744207698211,43.97098625,105.95,105.85,44.10198059]
[1744207698419,43.97098625,105.95,105.85,4.5259]
[1744207698624,43.97098625,105.95,105.87,9.4524]
[1744207698911,43.97098625,105.95,105.82,213.93444883]
[1744207699112,39.51538625,105.89,105.82,213.93444883]
[1744207699309,39.51538625,105.89,105.87,0.06115315]
[1744207699511,39.51538625,105.9,105.84,9.455]
[1744207699711,0.059767,105.89,105.87,0.07147277]
[1744207700105,0.059767,105.89,105.88,9.452]
[1744207700511,0.059767,105.89,105.87,0.07147277]
[1744207700913,48.96738625,105.88,105.87,0.07147277]
[1744207701219,13.9713,105.88,105.87,0.00576123]
[1744207701412,53.47468625,105.88,105.8,4.8602]
[1744207701613,39.51538625,105.86,105.79,4.8056]
[1744207701818,9.281,105.88,105.79,4.8056]
[1744207702018,9.4562,105.84,105.79,4.8056]
[1744207702203,9.281,105.88,105.79,4.8056]
[1744207702408,39.51538625,105.86,105.79,4.8056]
[1744207702608,0.06166481,105.85,105.82,0.06372874]
[1744207703413,0.06166481,105.85,105.84,9.4555]
[1744207703722,48.67128625,105.92,105.83,4.8695]
[1744207703924,48.67128625,105.92,105.89,9.4507]
[1744207704120,4.6251,105.92,105.84,68.76]
[1744207704418,4.6251,105.92,105.83,9.4559]
[1744207704419,39.51538625,105.88,105.83,9.4559]
[1744207704819,0.07044647,105.87,105.84,0.06212016]
[1744207705509,0.07044647,105.87,105.86,9.4538]
[1744207705910,0.07044647,105.87,105.85,9.4542]
[1744207706110,0.07044647,105.87,105.84,0.06212016]
[1744207706520,0.07044647,105.87,105.86,9.4538]
[1744207707015,4.647e-05,105.87,105.86,9.4538]
[1744207707220,4.647e-05,105.87,105.86,227.96434883]
[1744207707417,4.5035,105.96,105.94,9.4466]
[1744207707918,158.40727823,105.98,105.89,68.74]
[1744207708119,162.82457823,105.98,105.89,68.74]
[1744207708510,9.4452,105.96,105.89,68.74]
[1744207708711,0.06872525,105.95,105.92,0.06002612]
[1744207709014,0.06872525,105.95,105.94,9.4465]
[1744207709920,0.06872525,105.95,105.92,0.06002612]
[1744207710306,0.06872525,105.95,105.92,9.50792612]
[1744207710510,0.06872525,105.95,105.92,0.06002612]
[1744207711118,9.447,105.94,105.92,0.06002612]
[1744207711318,0.06872525,105.95,105.92,0.06002612]
[1744207711523,39.51538625,105.94,105.85,4.505]
[1744207711716,49.0241115,105.95,105.85,4.505]
[1744207711717,9.4515,105.89,105.85,4.505]
[1744207711913,39.51538625,105.91,105.85,4.505]
[1744207712113,9.4516,105.89,105.84,66.76]
[1744207712324,39.51538625,105.91,105.84,66.76]
[1744207712525,9.5842,105.92,105.88,9.4508]
[1744207712717,0.06872557,105.89,105.88,9.4508]
[1744207712918,605.17538625,105.96,105.9,9.4486]
[1744207713119,39.51538625,105.94,105.85,248.58593508]
[1744207713318,9.4487,105.91,105.85,248.58593508]
[1744207713516,9.4487,105.91,105.88,9.4503]
[1744207713717,565.66,105.96,105.85,248.58593508]
[1744207713920,39.51538625,105.95,105.85,248.58593508]
[1744207714218,0.06404577,105.92,105.89,0.0637114]
[1744207714415,0.06404577,105.92,105.85,248.58593508]
[1744207714718,39.51538625,105.95,105.9,9.4488]
[1744207714922,9.4467,105.93,105.9,9.4488]
[1744207715118,0.06533368,105.94,105.91,0.06947286]
[1744207715428,0.06533368,105.94,105.81,106.27538625]
[1744207715429,39.51538625,105.93,105.82,222.97464883]
[1744207715617,39.51538625,105.9,105.82,222.97464883]
[1744207715823,39.51538625,105.9,105.86,9.4527]
[1744207716014,39.51538625,105.9,105.82,222.97464883]
[1744207716415,9.4514,105.88,105.82,222.97464883]
[1744207716716,71.4747,105.92,105.85,0.06967991]
[1744207716717,0.06752822,105.87,105.85,0.06967991]
[1744207716915,9.45,105.9,105.86,9.4528]
[1744207717113,0.06239182,105.87,105.85,0.06263536]
[1744207717723,4.7147,105.92,105.85,66.82263536]
[1744207717925,44.23008625,105.92,105.82,289.73464883]
[1744207718422,9.4514,105.88,105.85,9.4533]
[1744207718627,39.51538625,105.9,105.82,289.73464883]
[1744207719019,0.06852316,105.87,105.85,0.06917917]
[1744207719526,0.06852316,105.87,105.86,9.4528]
[1744207719723,44.00948625,105.96,105.86,66.76]
[1744207719916,44.00948625,105.96,105.93,9.4461]
[1744207720116,4.4941,105.96,105.86,334.25133508]
[1744207720315,44.00948625,105.96,105.86,275.83054883]
[1744207720518,9.448,105.92,105.86,275.83054883]
[1744207720823,0.06161322,105.9,105.88,0.07265837]
[1744207721020,0.06161322,105.9,105.89,9.4497]
[1744207721519,0.06161322,105.9,105.88,0.07265837]
[1744207721922,1.322e-05,105.9,105.88,66.83265837]
[1744207722120,1.322e-05,105.9,105.89,4.5061]
[1744207722521,1.322e-05,105.9,105.88,0.07265837]
[1744207722923,1.322e-05,105.9,105.89,9.4501]
[1744207723824,1.322e-05,105.9,105.88,0.07265837]
[1744207724229,1.322e-05,105.9,105.89,9.4501]
[1744207724740,1.322e-05,105.9,105.89,76.2101]
[1744207724932,44.23818625,105.99,105.95,9.4446]
[1744207725122,39.51538625,105.97,105.89,285.05334883]
[1744207725324,44.23818625,105.99,105.92,9.447]
[1744207725635,4.7228,105.99,105.89,285.05334883]
[1744207725830,39.51538625,105.96,105.89,285.05334883]
[1744207726031,39.51538625,105.94,105.89,285.05334883]
[1744207726423,0.06104042,105.93,105.91,9.4475]
[1744207726623,0.06104042,105.93,105.9,0.06493404]
[1744207727428,9.4478,105.92,105.9,0.06493404]
[1744207727835,0.06104042,105.93,105.9,0.06493404]
[1744207728533,9.4483,105.91,105.9,0.06493404]
[1744207728729,0.06104042,105.93,105.9,0.06493404]
[1744207729029,39.57642667,105.93,105.9,0.06493404]
[1744207729736,0.06104042,105.93,105.9,0.06493404]
[1744207729941,0.06104042,105.93,105.9,66.80493404]
[1744207730123,4.042e-05,105.93,105.92,9.4475]
[1744207730332,39.51538625,106.01,105.91,9.0225]
[1744207730525,52.04980526,106.01,105.92,168.05798625]
[1744207730739,61.48970526,106.01,105.98,9.4414]
[1744207730927,91.56519151,106.01,105.94,66.74]
[1744207731124,9.4413,105.99,105.96,9.4433]
[1744207731329,91.56519151,106.01,105.94,66.74]
[1744207731542,0.06035548,105.99,105.96,0.06493132]
[1744207731732,9.50225548,105.99,105.96,9.50833132]
[1744207731931,39.51538625,105.97,105.96,0.06493132]
[1744207732131,9.4467,105.93,105.91,9.4479]
[1744207732331,39.51538625,105.95,105.91,9.4479]
[1744207732826,4.457,105.97,105.87,218.04044883]
[1744207733031,39.51538625,105.99,105.9,39.51538625]
[1744207733232,96.02219151,106.01,105.97,9.4426]
[1744207733440,0.07104784,105.96,105.93,0.06404778]
[1744207733634,96.02219151,106.01,105.92,4.8653]
[1744207733843,0.0670652,105.96,105.93,0.06491657]
[1744207734046,0.0670652,105.96,105.93,9.3871]
[1744207734226,0.0670652,105.96,105.93,9.45424604]
[1744207734427,39.51538625,106.06,105.94,39.51538625]
[1744207734633,43.97238625,106.06,105.96,39.51538625]
[1744207734837,96.14049151,106.08,105.96,209.07054883]
[1744207735049,52.04980526,106.08,106.0,39.51538625]
[1744207735342,52.04980526,106.08,106.01,76.2368]
[1744207735637,0.06012182,106.05,106.03,0.06976241]
[1744207735832,0.06012182,106.05,106.03,9.50666241]
[1744207736844,0.06012182,106.05,106.03,0.06976241]
[1744207737251,0.06012182,106.05,106.03,9.50686241]
[1744207737749,9.49602182,106.05,106.03,9.50686241]
[1744207737944,0.06012182,106.05,106.04,9.4368]
[1744207739341,91.56519151,106.1,106.03,0.06976241]
[1744207739541,52.04980526,106.1,106.04,66.7]
[1744207740043,61.48180526,106.1,106.04,66.7]
[1744207740239,52.04980526,106.1,106.04,66.7]
[1744207740543,13.924,106.13,106.06,0.06362379]
[1744207740731,0.0688589,106.08,106.06,0.06362379]
[1744207740934,39.51538625,106.11,106.06,9.4346]
[1744207741131,0.06274794,106.08,106.06,0.07151027]
[1744207741737,9.4341,106.07,106.06,0.07151027]
[1744207742249,0.06274794,106.08,106.06,0.07151027]
[1744207744738,0.06274794,106.08,106.06,9.50611027]
[1744207744947,0.06274794,106.08,106.06,0.07151027]
[1744207745250,0.06274794,106.08,106.07,9.4341]
[1744207745449,0.06274794,106.08,106.06,0.07151027]
[1744207745846,0.06274794,106.08,106.07,9.4341]
[1744207746152,44.10018625,106.14,106.06,0.07151027]
[1744207746346,4.5848,106.14,106.06,39.58689652]
[1744207746548,66.2,106.18,106.08,39.51538625]
[1744207746549,105.71538625,106.18,106.08,39.51538625]
[1744207746850,9.4259,106.17,106.14,9.4274]
[1744207747263,39.51538625,106.16,106.09,75.5902]
[1744207747442,39.51538625,106.16,106.14,0.06335831]
[1744207747649,39.51538625,106.16,106.1,9.4309]
[1744207747839,39.51538625,106.16,106.14,0.05985935]
[1744207747840,0.06733869,106.16,106.14,0.05985935]
[1744207748044,4.419,106.19,106.11,66.18]
[1744207748237,39.57795583,106.16,106.14,0.06661975]
[1744207748755,9.427,106.15,106.14,0.06661975]
[1744207749550,48.94238625,106.15,106.14,0.06661975]
[1744207749745,39.51538625,106.15,106.07,218.51644883]
[1744207750452,39.51538625,106.17,106.11,9.4301]
[1744207750654,43.93438625,106.19,106.1,66.18]
[1744207750847,0.06324253,106.15,106.13,0.07116232]
[1744207751047,0.06324253,106.15,106.13,9.49946232]
[1744207751346,0.06324253,106.15,106.13,0.07116232]
[1744207751853,9.49084253,106.15,106.13,0.07116232]
[1744207752158,0.06324253,106.15,106.13,0.07116232]
[1744207752348,9.4279,106.14,106.13,0.07116232]
[1744207752939,0.06324253,106.15,106.13,0.07116232]
[1744207753550,0.06324253,106.15,106.14,9.4279]
[1744207754251,39.51538625,106.22,106.17,9.4248]
[1744207754453,66.16,106.23,106.13,44.10644857]
[1744207754659,9.4266,106.16,106.13,4.5199]
[1744207754844,39.51538625,106.2,106.13,13.948]
[1744207755040,39.51538625,106.2,106.12,4.6679]
[1744207755041,39.51538625,106.18,106.06,537.79538625]
[1744207755249,39.51538625,106.16,106.07,6.26134905]
[1744207755446,0.07178444,106.13,106.11,0.07199999]
[1744207755845,39.51538625,106.16,106.1,9.431]
[1744207756160,0.06985363,106.13,106.11,0.06689884]
[1744207756956,39.51538625,106.18,106.11,0.06689884]
[1744207757254,9.4347,106.19,106.1,41.24769853]
[1744207757452,9.4347,106.19,106.11,66.16]
[1744207757652,48.95008625,106.19,106.08,319.26583508]
[1744207757844,9.4274,106.15,106.09,1.73239472]
[1744207758048,9.4274,106.15,106.12,9.429]
[1744207758253,0.07001751,106.13,106.12,9.429]
[1744207758549,48.95008625,106.19,106.08,319.26583508]
[1744207758757,48.95008625,106.19,106.11,0.07214887]
[1744207758758,0.06598867,106.14,106.11,0.07214887]
[1744207759059,0.06598867,106.14,106.12,9.429]
[1744207759260,0.06598867,106.14,106.11,0.0722752]
[1744207759650,0.06598867,106.14,106.11,9.5022752]
[1744207759854,0.06598867,106.14,106.11,0.0722752]
[1744207760047,39.51538625,106.13,106.08,209.07054883]
[1744207760251,0.06598867,106.14,106.07,105.65538625]
[1744207760463,9.4262,106.16,106.09,39.51538625]
[1744207760754,9.4262,106.16,106.13,9.4283]
[1744207760954,4.7981,106.19,106.11,39.51538625]
[1744207761357,4.7981,106.19,106.14,0.06224798]
[1744207761562,9.48960126,106.16,106.14,0.06224798]
[1744207761757,0.06340126,106.16,106.14,0.06224798]
[1744207762064,9.427,106.15,106.14,0.06224798]
[1744207762288,0.06340126,106.16,106.15,9.427]
[1744207762565,0.06340126,106.16,106.14,0.06224798]
[1744207763071,9.427,106.15,106.14,0.06224798]
[1744207764858,9.427,106.15,106.14,0.00192161]
[1744207765261,48.94238625,106.15,106.14,0.00192161]
[1744207765458,9.432,106.1,106.07,4.7435]
[1744207765954,9.432,106.1,106.07,14.177]
[1744207766150,9.4308,106.11,106.07,4.7435]
[1744207766355,4.6885,106.15,106.07,4.7435]
[1744207766554,9.4302,106.12,106.07,4.7435]
[1744207766853,0.06330049,106.1,106.08,0.06021567]
[1744207767052,0.06330049,106.1,106.09,9.4316]
[1744207767252,0.06330049,106.1,106.08,0.06021567]
[1744207767452,0.06330049,106.1,106.08,9.49341567]
[1744207767665,0.06330049,106.1,106.08,0.06021567]
[1744207768159,0.06330049,106.1,106.08,9.49301567]
[1744207768363,0.06330049,106.1,106.08,0.06021567]
[1744207768756,9.4323,106.09,106.08,0.06021567]
[1744207768964,0.06330049,106.1,106.08,0.06021567]
[1744207769350,9.4323,106.09,106.08,0.06021567]
[1744207769564,0.06330049,106.1,106.08,0.06021567]
[1744207770059,9.49530049,106.1,106.08,0.06021567]
[1744207770254,0.06330049,106.1,106.08,0.06021567]
[1744207770452,9.4323,106.09,106.08,0.06021567]
[1744207771975,39.51538625,106.09,106.02,4.4496]
[1744207772177,39.51538625,106.09,106.0,4.8309]
[1744207772178,39.51538625,106.07,106.0,4.8309]
[1744207772672,70.6877,106.09,106.03,9.4368]
[1744207772863,4.6077,106.09,106.0,4.8309]
[1744207773060,44.07338625,106.12,106.0,4.8309]
[1744207773366,0.06689046,106.06,106.03,0.06154039]
[1744207773561,9.4363,106.05,106.02,9.438]
[1744207773762,9.4363,106.05,106.03,0.06729045]
[1744207774073,39.51538625,106.08,106.03,0.06729045]
[1744207774273,9.4368,106.04,106.03,0.06729045]
[1744207774957,48.95538625,106.04,105.95,209.07054883]
[1744207775162,39.58059926,106.05,105.93,14.0148]
[1744207775163,39.51538625,105.98,105.93,14.0148]
[1744207775361,39.51538625,105.98,105.91,308.94316134]
[1744207775561,39.51538625,106.0,105.91,308.94316134]
[1744207775765,39.51538625,106.0,105.92,1.73517274]
[1744207775973,0.06749323,105.97,105.94,0.06888495]
[1744207776476,0.06749323,105.97,105.96,9.4439]
[1744207776773,0.06749323,105.97,105.94,0.06888495]
[1744207777570,4.74239323,105.97,105.94,0.06888495]
[1744207778176,0.06749323,105.97,105.94,0.06888495]
[1744207778663,0.06749323,105.97,105.96,9.4439]
[1744207778972,0.06749323,105.97,105.94,0.06888495]
[1744207781474,0.06749323,105.97,105.96,9.4439]
[1744207781971,9.4398,106.01,105.98,9.4414]
[1744207782174,48.82148625,106.03,105.95,70.8591]
[1744207782568,9.4408,106.0,105.97,9.4426]
[1744207782880,48.82148625,106.03,105.95,4.7191]
[1744207783177,0.07261022,106.0,105.97,0.06712192]
[1744207783769,9.4421,105.98,105.97,0.06712192]
[1744207784369,9.4416,105.99,105.97,0.06712192]
[1744207784569,0.07261022,106.0,105.97,0.06712192]
[1744207784982,537.75538625,105.99,105.85,209.07054883]
[1744207785175,39.51538625,105.94,105.85,213.65004883]
[1744207785376,39.51538625,105.94,105.9,9.4488]
[1744207785673,9.447,105.93,105.9,9.4488]
[1744207785880,39.51538625,105.94,105.89,9.4497]
[1744207786076,0.0670447,105.93,105.9,0.06786279]
[1744207786884,0.0670447,105.93,105.92,9.4475]
[1744207787071,66.2270447,105.93,105.8,99.87261251]
[1744207787383,39.51538625,105.94,105.84,39.51538625]
[1744207787576,39.51538625,105.94,105.89,9.4498]
[1744207787781,39.51538625,105.94,105.84,314.74593508]
[1744207788078,39.51538625,105.96,105.9,9.4489]
[1744207788281,0.07143372,105.9,105.88,0.06218142]
[1744207788678,0.06814457,105.9,105.88,9.51082407]
[1744207789081,4.7312,105.98,105.93,9.4459]
[1744207789387,48.51128625,106.02,105.93,66.18]
[1744207789573,48.51128625,106.02,105.95,9.4444]
[1744207789881,39.51538625,106.0,105.93,4.8722]
[1744207790077,39.51538625,105.98,105.92,209.07054883]
[1744207790283,39.51538625,105.98,105.89,4.717]
[1744207790284,39.51538625,105.96,105.95,0.06688334]
[1744207790484,79.0307725,105.96,105.84,209.07054883]
[1744207790680,79.0307725,105.96,105.87,9.4513]
[1744207790681,39.51538625,105.92,105.87,9.4513]
[1744207791082,39.51538625,105.94,105.85,9.6446]
[1744207791284,39.51538625,105.92,105.85,9.6446]
[1744207791685,9.51206115,105.9,105.87,0.06666134]
[1744207791886,0.06196115,105.9,105.87,0.06666134]
[1744207792086,9.51166115,105.9,105.87,0.06666134]
[1744207792299,0.06196115,105.9,105.87,0.06666134]
[1744207792500,39.5773474,105.9,105.87,0.06666134]
[1744207792715,9.451,105.88,105.87,0.06666134]
[1744207793505,39.51538625,105.88,105.81,9.5147]
[1744207794506,9.4514,105.88,105.81,75.7147]
[1744207794804,0.07129961,105.86,105.83,0.0714956]
[1744207794993,9.4506,105.89,105.82,1.7368205]
[1744207795193,9.4506,105.89,105.81,115.23008625]
[1744207795401,0.06044989,105.86,105.83,0.07154887]
[1744207795703,44.18498625,105.92,105.82,210.80734557]
[1744207795905,0.06694715,105.86,105.83,0.0725606]
[1744207796106,44.18498625,105.92,105.82,209.07054883]
[1744207796400,44.36978625,105.94,105.83,39.51538625]
[1744207796606,4.8544,105.94,105.84,1.73655574]
[1744207796903,4.8544,105.94,105.85,66.2]
[1744207797103,4.8544,105.94,105.85,105.71538625]
[1744207797298,0.06676013,105.91,105.88,0.06471145]
[1744207798800,9.51566013,105.91,105.88,0.06471145]
[1744207799003,9.51566013,105.91,105.88,9.51531145]
[1744207799204,0.06676013,105.91,105.88,0.06471145]
[1744207799503,9.4499,105.9,105.88,0.06471145]